bitfinex-derivatives/quotes_SOLF0:USTF0_20241021
["timestamp","ask_amount","ask_price","bid_price","bid_amount"]
[1729550801897,3.01324275,167.79,167.78,4.47288097]
[1729550802106,2.4918,167.8,167.78,4.47288097]
[1729550802409,19.71785099,167.8,167.79,4.47116078]
[1729550802604,16.8018,167.8,167.79,4.47116078]
[1729550802807,19.7825,167.8,167.79,4.47116078]
[1729550803205,22.75161889,167.8,167.79,4.47116078]
[1729550804613,27.07161889,167.8,167.79,4.47116078]
[1729550804911,12.76161889,167.8,167.79,4.47116078]
[1729550805206,27.07161889,167.8,167.79,4.47116078]
[1729550805402,27.07161889,167.8,167.69,4.32]
[1729550805403,24.09091889,167.8,167.69,4.32]
[1729550805603,24.09091889,167.8,167.7,14.31]
[1729550806013,2.9813,167.77,167.73,2.982]
[1729550806411,2.9813,167.77,167.7,14.31]
[1729550806617,24.09091889,167.8,167.7,14.31]
[1729550807309,2.9813,167.77,167.73,2.9818]
[1729550807602,4.65474543,167.76,167.73,2.9818]
[1729550807809,4.65474543,167.75,167.73,2.9818]
[1729550808010,2.9813,167.77,167.73,2.9818]
[1729550808207,4.6542771,167.76,167.73,2.9818]
[1729550808403,2.9813,167.77,167.72,2.9821]
[1729550808604,4.6543128,167.76,167.7,14.31]
[1729550808911,24.09091889,167.8,167.7,14.31]
[1729550808912,4.6543128,167.75,167.7,14.31]
[1729550809108,4.6543128,167.74,167.7,14.31]
[1729550809304,4.6543128,167.73,167.7,14.31]
[1729550809517,2.9812,167.78,167.7,14.31]
[1729550809814,4.65482431,167.77,167.7,14.31]
[1729550810010,4.65482431,167.76,167.7,14.31]
[1729550810202,4.65482431,167.75,167.7,14.31]
[1729550810404,4.65482431,167.74,167.7,14.31]
[1729550810605,2.9811,167.78,167.7,14.31]
[1729550810806,4.65483363,167.77,167.7,14.31]
[1729550811014,4.65483363,167.76,167.7,14.31]
[1729550811311,4.65483363,167.76,167.69,4.32]
[1729550811312,4.65483363,167.75,167.72,14.31]
[1729550811513,4.65483363,167.74,167.72,14.31]
[1729550811716,2.9809,167.79,167.75,2.9815]
[1729550811910,4.65477447,167.78,167.75,2.9815]
[1729550812111,4.65477447,167.77,167.75,2.9815]
[1729550812313,4.65477447,167.76,167.75,2.9815]
[1729550814717,3.849,167.86,167.75,14.31]
[1729550814919,3.849,167.86,167.78,14.31]
[1729550815114,2.9802,167.84,167.78,14.31]
[1729550815308,2.98444887,167.83,167.78,14.31]
[1729550815712,2.9802,167.84,167.78,14.31]
[1729550816914,2.9802,167.84,167.8,2.9807]
[1729550818827,7.3399,167.85,167.8,2.9806]
[1729550819022,7.39785451,167.85,167.8,2.9806]
[1729550819833,2.9802,167.84,167.8,2.9806]
[1729550823733,2.9806,167.81,167.78,2.981]
[1729550824227,2.9806,167.81,167.78,12.141]
[1729550824435,9.16,167.83,167.78,12.141]
[1729550824625,2.9804,167.82,167.78,12.141]
[1729550826830,2.9804,167.82,167.78,2.981]
[1729550827136,9.16,167.83,167.77,9.16]
[1729550827826,9.16,167.83,167.78,9.16]
[1729550828827,2.9804,167.82,167.78,12.1411]
[1729550833730,12.1403,167.83,167.79,2.9808]
[1729550833935,2.9803,167.83,167.8,9.16]
[1729550835642,9.16,167.84,167.79,9.16]
[1729550836939,2.9803,167.83,167.8,2.9806]
[1729550840534,12.1403,167.83,167.8,2.9806]
[1729550842042,2.9804,167.82,167.79,2.9808]
[1729550842348,7.39785451,167.85,167.71,1.2747]
[1729550842349,9.16,167.8,167.71,1.2747]
[1729550842545,9.16,167.79,167.76,2.9813]
[1729550842747,9.16,167.79,167.72,1.2171]
[1729550842941,4.3,167.81,167.73,9.16]
[1729550843147,9.16,167.78,167.74,12.1418]
[1729550844036,9.16,167.78,167.74,9.16]
[1729550844245,12.1409,167.79,167.75,9.16]
[1729550845947,12.1409,167.79,167.76,2.9814]
[1729550846342,9.16,167.78,167.76,2.9814]
[1729550846740,9.16,167.77,167.72,10.3771]
[1729550847044,9.16,167.73,167.7,145.66936631]
[1729550847237,9.16,167.71,167.7,145.66936631]
[1729550848454,2.5423,167.79,167.7,145.66936631]
[1729550848751,9.16,167.76,167.71,9.16]
[1729550848949,12.14486228,167.76,167.71,9.16]
[1729550849850,15.12636228,167.76,167.72,2.9821]
[1729550850753,9.16,167.75,167.72,2.9821]
[1729550852855,12.1417,167.75,167.7,154.82936631]
[1729550853063,12.1417,167.75,167.71,2.9823]
[1729550853755,2.98486228,167.76,167.73,9.16]
[1729550853963,12.1413,167.77,167.73,12.142]
[1729550854259,2.75431613,167.88,167.74,9.16]
[1729550854562,13.46,167.81,167.76,9.16]
[1729550854765,9.16,167.81,167.76,9.16]
[1729550855354,2.92822353,167.8,167.76,9.16]
[1729550856055,5.90902353,167.8,167.76,12.1414]
[1729550861261,9.16,167.77,167.7,145.66936631]
[1729550861458,9.16,167.76,167.72,9.16]
[1729550861662,9.16,167.76,167.71,4.3]
[1729550861857,12.1415,167.76,167.72,2.982]
[1729550864862,9.16,167.76,167.72,2.982]
[1729550865365,9.16,167.76,167.72,12.142]
[1729550865866,9.16,167.76,167.73,2.982]
[1729550866367,4.3,167.78,167.74,9.16]
[1729550866863,15.06902353,167.8,167.75,2.9815]
[1729550867254,12.08822353,167.8,167.74,9.16]
[1729550867466,12.08822353,167.8,167.77,2.9812]
[1729550868560,5.5442,167.81,167.76,9.16]
[1729550868762,9.16,167.8,167.78,2.981]
[1729550871455,12.1402,167.83,167.79,2.9808]
[1729550871662,3.04346454,167.83,167.78,9.16]
[1729550872957,3.04346454,167.83,167.8,2.9806]
[1729550878377,9.16,167.84,167.81,2.9804]
[1729550878969,12.1829501,167.84,167.81,2.9804]
[1729550880269,15.1629501,167.84,167.81,2.9804]
[1729550885973,3.0229501,167.84,167.82,2.9803]
[1729550886574,9.16,167.86,167.82,2.9803]
[1729550886782,12.1397,167.86,167.82,2.9803]
[1729550887080,2.97253621,167.85,167.82,2.9803]
[1729550887485,2.9793,167.88,167.85,2.9797]
[1729550887779,9.16,167.89,167.84,9.16]
[1729550888987,12.1392,167.89,167.86,2.9795]
[1729550892592,9.16,167.87,167.81,4.3]
[1729550892792,12.10072316,167.87,167.82,9.16]
[1729550892990,2.94072316,167.87,167.84,9.16]
[1729550893187,12.1392,167.89,167.85,2.9798]
[1729550894394,12.1392,167.89,167.86,2.9796]
[1729550899191,12.1392,167.89,167.85,2.9798]
[1729550904101,2.9795,167.88,167.85,2.9798]
[1729550904299,2.94245807,167.87,167.85,2.9798]
[1729550905487,12.1392,167.89,167.85,2.9798]
[1729550909195,9.16,167.86,167.8,4.24]
[1729550909394,9.16,167.86,167.7,145.66936631]
[1729550909395,9.16,167.83,167.78,13.4]
[1729550909599,4.24,167.87,167.78,13.4]
[1729550909600,9.16,167.82,167.78,4.24]
[1729550909800,12.08011707,167.82,167.78,4.24]
[1729550910300,9.16,167.84,167.79,9.16]
[1729550911202,2.95674545,167.83,167.79,9.16]
[1729550912004,2.95674545,167.83,167.8,2.9806]
[1729550912206,9.16,167.83,167.8,2.9806]
[1729550912503,12.09976294,167.83,167.8,2.9806]
[1729550912699,12.09976294,167.83,167.79,2.9808]
[1729550913107,12.09976294,167.83,167.78,13.4]
[1729550914406,12.09976294,167.83,167.8,2.9807]
[1729550914911,12.09976294,167.83,167.78,4.24]
[1729550915116,15.08006294,167.83,167.78,7.2209]
[1729550915301,15.08006294,167.83,167.78,4.24]
[1729550915707,15.08006294,167.83,167.79,2.9809]
[1729550916404,9.16,167.82,167.79,2.9809]
[1729550917608,2.9799,167.85,167.78,9.16]
[1729550917814,9.16,167.85,167.8,9.16]
[1729550918015,12.14552543,167.85,167.8,9.16]
[1729550918213,12.14552543,167.85,167.82,2.9804]
[1729550920014,12.14552543,167.85,167.8,9.16]
[1729550920015,12.14552543,167.85,167.83,2.9802]
[1729550920209,9.16,167.86,167.81,9.16]
[1729550920416,9.16,167.86,167.84,2.9799]
[1729550920710,9.16,167.89,167.84,9.16]
[1729550921905,9.16,167.89,167.86,2.9796]
[1729550923611,1.3348,167.91,167.88,2.9793]
[1729550923812,13.4,167.92,167.87,9.16]
[1729550924816,13.4,167.92,167.89,2.9791]
[1729550925209,9.16,167.92,167.89,2.9791]
[1729550928115,9.16,167.92,167.9,2.9789]
[1729550931124,9.16,167.92,167.91,2.9788]
[1729550931719,4.30345433,167.96,167.88,9.16]
[1729550931923,9.16,167.94,167.88,9.16]
[1729550932824,9.16,167.94,167.92,2.9785]
[1729550934317,9.16,167.94,167.93,2.9784]
[1729550938123,2.96345433,167.96,167.95,2.9781]
[1729550938320,4.22,167.98,167.93,9.16]
[1729550938627,12.18019908,167.98,167.93,9.16]
[1729550939024,3.02019908,167.98,167.93,9.16]
[1729550939216,2.6192,167.99,167.98,2.9775]
[1729550939420,11.7792,167.99,167.9,1.2524]
[1729550939726,9.16,167.95,167.89,13.38]
[1729550940625,9.16,167.95,167.89,9.16]
[1729550940814,9.16,167.95,167.89,13.38]
[1729550942028,9.16,167.95,167.94,2.9782]
[1729550944432,9.16,167.95,167.85,9.16]
[1729550944433,4.22,167.95,167.85,9.16]
[1729550944627,4.22,167.95,167.9,9.16]
[1729550944820,4.22,167.95,167.93,2.9783]
[1729550944821,13.38,167.95,167.93,2.9783]
[1729550945131,9.16,167.94,167.93,2.9783]
[1729550945828,4.22,167.95,167.88,13.38]
[1729550946032,9.16,167.95,167.91,9.16]
[1729550946929,9.16,167.95,167.94,2.9782]
[1729550947538,9.16,167.96,167.95,2.9779]
[1729550947834,12.15720819,167.99,167.94,9.16]
[1729550948034,12.15720819,167.99,167.96,2.9777]
[1729550948430,1.06017298,168.07,167.99,12.0]
[1729550948634,10.29372419,168.06,168.0,4.22]
[1729550948827,10.29372419,168.06,168.01,9.16]
[1729550949028,9.36746195,168.05,168.01,9.16]
[1729550949228,9.36746195,168.05,168.02,2.9768]
[1729550952037,0.20746195,168.05,168.02,2.9768]
[1729550955832,9.36746195,168.05,168.02,2.9768]
[1729550962245,0.20746195,168.05,168.02,12.1368]
[1729550964153,0.20746195,168.05,168.03,2.9767]
[1729550964346,0.20746195,168.05,168.03,4.22]
[1729550964650,0.20746195,168.05,168.04,9.16]
[1729550965243,0.20746195,168.05,168.04,2.9765]
[1729550965545,9.36746195,168.05,168.04,2.9765]
[1729550965744,9.36746195,168.05,168.03,2.9766]
[1729550965938,9.16,168.04,168.03,2.9766]
[1729550968251,9.36746195,168.05,168.04,2.9765]
[1729550968646,0.20746195,168.05,168.04,2.9765]
[1729550968848,9.36746195,168.05,168.04,2.9765]
[1729550971845,0.20746195,168.05,168.04,12.1365]
[1729550974047,0.20746195,168.05,168.04,2.9765]
[1729550977457,9.36746195,168.05,168.04,2.9765]
[1729550993863,9.36746195,168.05,168.02,2.9767]
[1729550994067,9.16,168.03,167.93,9.16]
[1729550994269,9.16,167.99,167.94,14.47378903]
[1729550994471,9.16,168.04,167.97,9.16]
[1729550994776,0.20746195,168.05,168.02,9.16]
[1729550994971,0.20746195,168.05,168.04,2.9765]
[1729550998377,0.20746195,168.05,167.98,4.22]
[1729550998576,9.16,168.01,167.98,4.22]
[1729550998970,9.16,168.01,168.0,2.9772]
[1729550999578,9.16,168.03,167.98,9.16]
[1729550999766,9.16,168.03,168.02,2.9768]
[1729551000367,9.16,168.03,167.98,9.16]
[1729551000368,0.20746195,168.05,168.04,2.9765]
[1729551000571,9.36746195,168.05,168.04,2.9765]
[1729551003183,9.36746195,168.05,168.03,2.9765]
[1729551003376,9.16,168.04,168.03,2.9765]
[1729551003886,0.20746195,168.05,168.04,2.9765]
[1729551004178,9.36746195,168.05,168.04,2.9765]
[1729551005282,9.36746195,168.05,167.94,145.4512722]
[1729551005486,9.16,168.01,167.96,13.38]
[1729551005672,9.16,168.01,167.96,9.16]
[1729551006375,0.20746195,168.05,168.0,2.9772]
[1729551006682,9.16,168.01,168.0,2.9772]
[1729551008284,12.19203287,168.01,167.93,13.38]
[1729551008474,9.16,167.98,167.93,13.38]
[1729551008680,9.16,167.96,167.93,4.22]
[1729551009374,9.16,167.96,167.95,2.9781]
[1729551010589,9.16,167.96,167.91,13.38]
[1729551011891,9.16,167.96,167.95,2.9781]
[1729551012477,9.16,167.96,167.87,10.4562]
[1729551012686,9.16,167.92,167.91,2.9788]
[1729551013183,9.16,167.92,167.84,4.22]
[1729551013385,9.16,167.86,167.83,2.6444]
[1729551013580,9.16,167.86,167.84,1.09445065]
[1729551013786,9.16,167.86,167.85,2.9798]
[1729551014180,2.9544977,167.92,167.82,9.16]
[1729551014382,4.22,167.91,167.9,2.9789]
[1729551014591,7.24002084,167.91,167.9,2.9789]
[1729551014783,7.24002084,167.91,167.82,14.29]
[1729551015086,7.24002084,167.91,167.89,2.9791]
[1729551016088,7.24002084,167.91,167.82,14.29]
[1729551016391,7.24002084,167.91,167.9,2.979]
[1729551016592,7.24002084,167.91,167.8,4.22]
[1729551016793,7.24002084,167.91,167.89,2.9791]
[1729551017293,7.24002084,167.91,167.9,2.979]
[1729551018694,4.22,167.91,167.9,2.979]
[1729551019391,4.22,167.94,167.93,2.9784]
[1729551019595,4.22,167.96,167.9,14.29]
[1729551019797,4.22,167.98,167.9,14.29]
[1729551021498,4.22,167.98,167.95,2.9779]
[1729551021797,1.2796,168.0,167.92,14.29]
[1729551022092,5.4814,168.01,167.99,2.9774]
[1729551022692,4.22,168.01,167.99,2.9774]
[1729551022995,4.22,168.01,168.0,2.9772]
[1729551023387,14.29,168.03,168.0,2.9772]
[1729551023584,4.28,168.01,168.0,2.9772]
[1729551023990,93.05055306,168.04,168.02,2.9767]
[1729551027386,91.70655306,168.04,167.96,4.28]
[1729551027594,91.70655306,168.04,168.03,2.9767]
[1729551031300,0.20746195,168.05,167.97,14.29]
[1729551031496,0.20746195,168.05,168.04,2.9765]
[1729551039710,14.49746195,168.05,167.98,4.28]
[1729551040307,9.14,168.03,167.98,13.42]
[1729551040903,9.14,168.03,168.02,2.9768]
[1729551043314,0.20746195,168.05,167.98,9.14]
[1729551043514,9.14,168.04,168.03,2.9765]
[1729551044110,0.20746195,168.05,168.04,2.9765]
[1729551044311,0.20746195,168.05,168.04,12.1165]
[1729551045912,0.20746195,168.05,168.04,2.9765]
[1729551058139,0.20746195,168.05,168.01,2.9769]
[1729551058443,0.20746195,168.05,167.99,4.28]
[1729551058844,3.18386195,168.05,168.01,2.977]
[1729551059339,0.20746195,168.05,168.01,2.977]
[1729551060638,0.20746195,168.05,168.02,2.9768]
[1729551062941,0.20746195,168.05,167.99,4.28]
[1729551063140,0.20746195,168.05,168.04,2.9765]
[1729551065344,0.20746195,168.05,167.99,18.56]
[1729551065540,0.20746195,168.05,168.02,2.9768]
[1729551066850,3.18376195,168.05,168.02,2.9768]
[1729551067049,0.20746195,168.05,168.02,2.9768]
[1729551068350,9.34746195,168.05,168.04,2.9765]
[1729551068848,0.20746195,168.05,168.04,2.9765]
[1729551078458,0.20746195,168.05,167.97,3.7502]
[1729551078657,2.9769,168.02,167.99,2.9772]
[1729551078856,17.30815548,168.01,167.96,4.28]
[1729551079054,14.28,168.01,167.94,145.44281096]
[1729551079254,17.2574,167.99,167.94,145.44281096]
[1729551079456,20.30311086,167.99,167.94,145.44281096]
[1729551079865,17.32571086,167.99,167.96,2.9778]
[1729551081562,17.32571086,167.99,167.94,2.9781]
[1729551081761,17.32571086,167.99,167.89,2.5941]
[1729551082069,14.28,167.97,167.9,4.28]
[1729551082664,2.9775,167.99,167.93,2.9784]
[1729551082863,17.2575,167.99,167.9,4.28]
[1729551083461,20.25744744,167.99,167.9,5.5186]
[1729551083861,2.9776,167.98,167.94,2.9781]
[1729551092470,9.15,167.95,167.94,2.9781]
[1729551093773,9.15,167.96,167.94,2.9781]
[1729551094075,2.9778,167.97,167.93,2.9783]
[1729551094373,9.15,167.95,167.93,2.9783]
[1729551095869,9.15,167.94,167.92,2.9786]
[1729551096079,9.15,167.93,167.92,2.9786]
[1729551096373,9.15,167.93,167.89,2.5941]
[1729551096671,9.15,167.92,167.87,13.43]
[1729551097472,9.15,167.92,167.91,2.9787]
[1729551097662,9.15,167.92,167.87,13.43]
[1729551098269,9.15,167.92,167.9,2.9788]
[1729551098465,9.15,167.91,167.85,2.6212]
[1729551098672,4.28,167.93,167.85,2.6212]
[1729551098673,9.15,167.88,167.85,2.6212]
[1729551099372,9.15,167.88,167.87,2.9795]
[1729551099780,9.15,167.88,167.83,4.28]
[1729551100072,9.15,167.85,167.8,3.9338]
[1729551100277,4.28,167.89,167.82,9.15]
[1729551100578,9.15,167.88,167.85,2.9798]
[1729551101784,9.15,167.87,167.85,2.9798]
[1729551102482,9.15,167.86,167.85,2.9798]
[1729551103875,9.15,167.86,167.8,8.2138]
[1729551103876,7.25838118,167.89,167.84,9.15]
[1729551104072,9.15,167.88,167.84,9.15]
[1729551104573,9.15,167.87,167.82,9.15]
[1729551105973,9.15,167.87,167.86,2.9797]
[1729551119975,12.1295,167.87,167.84,2.9799]
[1729551120175,9.15,167.85,167.8,1.3219]
[1729551120385,9.15,167.83,167.8,1.3219]
[1729551120584,9.15,167.83,167.82,2.9804]
[1729551122187,9.15,167.84,167.83,2.9801]
[1729551123884,9.15,167.86,167.83,2.9801]
[1729551124781,9.15,167.86,167.84,2.98]
[1729551125681,16.3692,167.89,167.83,9.15]
[1729551126286,13.39,167.89,167.86,2.9796]
[1729551127082,3.01710401,167.88,167.86,2.9796]
[1729551127788,9.15,167.87,167.86,2.9796]
[1729551130888,4.251,167.91,167.88,2.9793]
[1729551131100,9.15,167.9,167.88,2.9793]
[1729551131383,1.2722,167.91,167.84,9.15]
[1729551131581,12.19391212,167.9,167.88,2.9791]
[1729551132687,2.9784,167.94,167.9,2.9789]
[1729551132887,9.15,167.92,167.88,9.15]
[1729551133194,12.13976173,167.92,167.88,9.15]
[1729551133586,12.13976173,167.92,167.89,2.979]
[1729551139693,2.9778,167.97,167.93,2.9784]
[1729551139892,12.1278,167.97,167.93,2.9784]
[1729551140990,5.53440709,167.98,167.91,9.15]
[1729551140991,12.1279,167.96,167.91,9.15]
[1729551141191,12.1279,167.96,167.92,2.9786]
[1729551143002,9.15,167.96,167.93,2.9783]
[1729551143196,2.9778,167.97,167.91,9.15]
[1729551143497,5.53440709,167.98,167.94,2.9781]
[1729551143498,17.66190709,167.98,167.94,2.9781]
[1729551144200,17.66190709,167.98,167.95,2.9781]
[1729551144393,14.68440709,167.98,167.93,9.15]
[1729551144597,2.90780709,167.98,167.95,9.15]
[1729551144796,16.3673,168.0,167.95,9.15]
[1729551145302,19.40976895,168.0,167.95,9.15]
[1729551145701,19.40976895,168.0,167.97,2.9775]
[1729551145903,12.19246895,168.0,167.95,9.15]
[1729551146100,2.5365,168.04,167.97,9.15]
[1729551146300,15.9065,168.04,168.0,2.9771]
[1729551146600,2.5365,168.04,167.99,9.15]
[1729551146808,11.6865,168.04,167.99,9.15]
[1729551147106,14.68454416,168.04,168.01,2.9769]
[1729551147506,9.15,168.02,167.94,13.37]
[1729551147699,9.15,168.0,167.94,9.15]
[1729551148002,9.15,167.98,167.93,9.15]
[1729551148802,9.15,167.98,167.95,2.9779]
[1729551150314,12.1267,168.03,167.99,2.9772]
[1729551150502,14.68454416,168.04,167.99,9.15]
[1729551151216,17.66114416,168.04,168.0,2.9771]
[1729551152611,17.66114416,168.04,168.01,2.977]
[1729551156119,9.15,168.03,167.98,9.15]
[1729551156314,9.15,168.03,167.95,4.22]
[1729551156514,9.15,168.03,167.97,9.15]
[1729551156710,2.977,168.02,167.99,2.9772]
[1729551157014,9.15,168.03,167.97,9.15]
[1729551157615,12.1267,168.03,167.99,2.9772]
[1729551159117,12.1267,168.03,167.98,9.15]
[1729551159325,12.1267,168.03,168.0,2.9771]
[1729551159719,9.15,168.03,167.98,9.15]
[1729551159913,9.15,168.03,168.0,2.9771]
[1729551162511,5.53454416,168.04,167.98,9.15]
[1729551162712,3.18376195,168.05,168.0,9.15]
[1729551162713,4.42746195,168.05,168.0,9.15]
[1729551162913,16.54544716,168.05,167.96,3.9309]
[1729551163119,19.52184716,168.05,168.01,2.9769]
[1729551165619,9.15,168.04,168.01,2.9769]
[1729551167119,12.1266,168.04,168.01,2.9769]
[1729551167317,12.1266,168.04,168.0,2.9771]
[1729551167618,9.15,168.03,167.97,13.37]
[1729551167823,9.15,168.04,168.0,2.977]
[1729551168317,9.15,168.04,168.0,9.15]
[1729551168318,2.9765,168.04,168.0,9.15]
[1729551169716,3.17544716,168.05,168.0,9.15]
[1729551169921,3.17544716,168.05,168.01,9.15]
[1729551170317,3.17544716,168.05,168.02,2.9767]
[1729551172521,3.17544716,168.05,168.01,9.15]
[1729551173724,3.17544716,168.05,168.03,2.9765]
[1729551176519,3.17544716,168.05,168.04,2.9765]
[1729551180324,3.17544716,168.05,168.03,2.9765]
[1729551181423,0.20746195,168.05,168.02,9.15]
[1729551181630,0.20746195,168.05,168.04,2.9765]
[1729551184426,0.20746195,168.05,168.02,9.15]
[1729551184629,0.20746195,168.05,168.03,2.9766]
[1729551189036,13.39,168.04,167.92,9.15]
[1729551189333,9.15,167.95,167.91,9.15]
[1729551189523,9.15,167.95,167.92,2.9786]
[1729551190532,9.15,167.95,167.91,2.9787]
[1729551190728,9.15,167.93,167.88,5.4606]
[1729551191132,9.15,167.93,167.9,2.9789]
[1729551191332,2.9783,167.94,167.9,2.9789]
[1729551191533,9.15,167.97,167.92,9.15]
[1729551191733,9.15,167.97,167.93,2.9783]
[1729551192228,9.15,167.97,167.88,5.4606]
[1729551192229,4.24,167.99,167.96,2.9778]
[1729551192435,13.39,167.99,167.94,9.15]
[1729551192828,13.39,167.99,167.95,2.978]
[1729551193931,16.3674,167.99,167.95,2.978]
[1729551194736,9.15,167.97,167.95,2.978]
[1729551195330,9.15,167.98,167.95,2.978]
[1729551196132,1.3334,168.03,167.97,9.15]
[1729551196133,4.24,168.03,167.97,9.15]
[1729551196329,4.24,168.03,167.99,9.15]
[1729551196527,4.24,168.03,168.0,2.9771]
[1729551196733,2.9765,168.04,168.01,9.15]
[1729551197438,6.23225075,168.05,168.01,9.15]
[1729551197739,6.23225075,168.05,168.02,9.15]
[1729551197940,6.23225075,168.05,168.01,12.1269]
[1729551198434,6.23225075,168.05,168.01,2.9769]
[1729551198736,2.9766,168.04,168.0,2.9771]
[1729551200746,0.20746195,168.05,168.01,14.28]
[1729551201245,0.20746195,168.05,168.03,2.9766]
[1729551202338,3.18396195,168.05,168.0,2.977]
[1729551202540,3.18396195,168.05,167.98,18.52]
[1729551203841,3.18396195,168.05,168.01,2.977]
[1729551205451,2.9765,168.04,168.01,2.977]
[1729551205944,0.20746195,168.05,168.01,2.977]
[1729551206947,3.18386195,168.05,168.01,2.977]
[1729551216655,3.18386195,168.05,168.02,2.9768]
[1729551218057,0.20746195,168.05,168.03,2.9765]
[1729551218958,0.20746195,168.05,168.04,2.9765]
[1729551219155,0.20746195,168.05,168.0,14.28]
[1729551220368,0.20746195,168.05,168.03,12.1166]
[1729551222671,0.20746195,168.05,168.03,9.14]
[1729551222872,0.20746195,168.05,168.04,2.9765]
[1729551231977,0.20746195,168.05,168.04,12.1165]
[1729551234475,0.20746195,168.05,168.04,9.14]
[1729551239184,0.20746195,168.05,168.04,12.1165]
[1729551243986,0.20746195,168.05,168.03,2.9765]
[1729551244286,9.14,168.03,167.97,9.14]
[1729551244486,2.9769,168.02,167.98,12.1174]
[1729551244686,9.34746195,168.05,167.98,9.14]
[1729551245480,2.9767,168.03,167.99,2.9772]
[1729551245882,2.9767,168.03,167.98,10.62823904]
[1729551246090,2.9767,168.03,167.98,9.14]
[1729551246290,2.9767,168.03,167.98,10.62823904]
[1729551246590,2.9767,168.03,167.98,9.14]
[1729551246791,2.9767,168.03,167.98,10.62823904]
[1729551246993,2.9767,168.03,168.0,2.9772]
[1729551247690,2.9768,168.02,167.98,2.9774]
[1729551247989,9.14,168.03,167.98,9.14]
[1729551248586,12.1168,168.03,167.99,2.9773]
[1729551248888,2.94816516,168.02,167.99,2.9773]
[1729551249994,2.94816516,168.02,167.99,9.14]
[1729551250196,9.14,168.04,167.99,9.14]
[1729551250395,12.15137434,168.04,167.99,9.14]
[1729551250791,15.12797434,168.04,168.0,2.9771]
[1729551256487,5.98797434,168.04,168.0,2.9771]
[1729551256991,15.12797434,168.04,168.0,2.9771]
[1729551257390,9.14,168.02,167.98,1.48838187]
[1729551257597,2.9776,167.98,167.94,2.9781]
[1729551257799,12.07418159,167.98,167.93,9.14]
[1729551257995,4.22,168.02,167.95,9.14]
[1729551258196,12.1171,168.01,167.97,2.9776]
[1729551258400,9.14,168.01,167.97,9.14]
[1729551259696,9.14,168.01,167.98,2.9774]
[1729551260507,12.1169,168.01,167.98,2.9774]
[1729551261902,9.14,168.01,167.97,9.14]
[1729551262099,9.14,168.01,167.98,2.9772]
[1729551264095,2.9762,168.04,168.0,2.9767]
[1729551264402,13.58746195,168.05,167.99,9.14]
[1729551264600,16.62782867,168.05,167.99,9.14]
[1729551264801,19.60392867,168.05,168.01,2.9766]
[1729551265100,3.24782867,168.05,168.02,9.14]
[1729551265401,0.20746195,168.05,168.04,9.14]
[1729551267100,0.20746195,168.05,168.04,12.1162]
[1729551271804,0.20746195,168.05,168.04,13.60414058]
[1729551272005,0.20746195,168.05,168.04,12.1162]
[1729551272604,0.20746195,168.05,168.04,13.60414058]
[1729551272803,0.20746195,168.05,168.04,12.1162]
[1729551273404,0.20746195,168.05,168.04,13.60414058]
[1729551273603,0.20746195,168.05,168.04,12.1162]
[1729551274306,0.20746195,168.05,168.04,13.60414058]